bitfinex/quotes_BTCUSD_20250523
["timestamp","ask_amount","ask_price","bid_price","bid_amount"]
[1747977120007,0.76039618,110800.0,110790.0,0.64247562]
[1747977120842,0.76039618,110800.0,110790.0,0.62812]
[1747977122705,0.76039618,110800.0,110790.0,0.35764]
[1747977122917,0.52954762,110790.0,110780.0,0.4023114]
[1747977123120,0.69543403,110790.0,110780.0,1.0304314]
[1747977123764,0.69543403,110790.0,110780.0,0.4023114]
[1747977123967,0.69543403,110790.0,110780.0,1.0304714]
[1747977124168,0.69543403,110790.0,110780.0,1.0314714]
[1747977124345,0.69543403,110790.0,110780.0,1.02168]
[1747977125031,0.69543403,110790.0,110780.0,1.02068]
[1747977125843,0.69543403,110790.0,110780.0,1.01968]
[1747977126269,0.68089318,110790.0,110780.0,1.01968]
[1747977138840,0.31079318,110790.0,110780.0,1.01968]
[1747977139050,0.27909318,110790.0,110780.0,3.007756]
[1747977140102,0.31179318,110790.0,110780.0,3.007756]
[1747977141016,0.31179318,110790.0,110780.0,3.0185474]
[1747977141147,0.30276726,110790.0,110780.0,3.0185474]
[1747977141771,0.31179318,110790.0,110780.0,3.0185474]
[1747977143491,0.31179318,110790.0,110780.0,2.6854714]
[1747977143720,0.34189318,110790.0,110780.0,2.6854714]
[1747977143884,0.34189318,110790.0,110780.0,1.8494714]
[1747977145522,0.34189318,110790.0,110780.0,1.8148714]
[1747977151856,0.31179318,110790.0,110780.0,1.8148714]
[1747977152188,0.31179318,110790.0,110780.0,1.81843562]
[1747977152396,0.34179318,110790.0,110780.0,1.81847562]
[1747977173597,0.34179318,110790.0,110780.0,1.19027562]
[1747977173798,0.34179318,110790.0,110780.0,1.81847562]
[1747977182270,0.34179318,110790.0,110780.0,1.42147562]
[1747977185740,0.34179318,110790.0,110780.0,1.03407562]
[1747977188093,0.27909318,110790.0,110780.0,1.03407562]
[1747977188825,0.27909318,110790.0,110780.0,3.02215162]
[1747977190773,0.27909318,110790.0,110780.0,3.05285162]
[1747977190971,0.27909318,110790.0,110780.0,3.08585162]
[1747977190972,0.18954762,110790.0,110780.0,3.08585162]
[1747977191579,0.18954762,110790.0,110780.0,3.071496]
[1747977193970,0.18954762,110790.0,110780.0,2.800976]
[1747977194211,0.18954762,110790.0,110780.0,3.071496]
[1747977198209,0.18954762,110790.0,110780.0,3.038496]
[1747977199454,0.18954762,110790.0,110780.0,3.038456]
[1747977199692,0.18954762,110790.0,110780.0,3.007756]
[1747977202363,0.18954762,110790.0,110780.0,2.379596]
[1747977202565,0.22254762,110790.0,110780.0,3.007436]
[1747977207212,0.22254762,110790.0,110780.0,2.776239]
[1747977208741,0.22254762,110790.0,110780.0,2.79062552]
[1747977211739,0.25424762,110790.0,110780.0,2.79062552]
[1747977214486,0.25424762,110790.0,110780.0,2.52014552]
[1747977214803,0.25424762,110790.0,110780.0,2.79062552]
[1747977215255,0.25424762,110790.0,110780.0,2.16278552]
[1747977215467,0.34379318,110790.0,110780.0,0.40386652]
[1747977215689,0.34379318,110790.0,110780.0,1.03130652]
[1747977217228,0.34379318,110790.0,110780.0,1.0277182]
[1747977218309,0.34379318,110790.0,110780.0,1.03130652]
[1747977222738,0.35579318,110790.0,110780.0,1.03130652]
[1747977224641,0.35579318,110790.0,110780.0,0.40386652]
[1747977224839,0.35579318,110790.0,110780.0,1.03130652]
[1747977227641,0.23454762,110790.0,110780.0,1.03130652]
[1747977227906,0.26684762,110790.0,110780.0,1.03130652]
[1747977228175,0.35639318,110790.0,110780.0,1.03130652]
[1747977228442,0.34439318,110790.0,110780.0,1.03130652]
[1747977235070,0.34425664,110790.0,110780.0,1.03130652]
[1747977237378,0.35625664,110790.0,110780.0,1.03130652]
[1747977239372,0.30625664,110790.0,110780.0,1.03130652]
[1747977239773,0.30625664,110790.0,110780.0,0.76082652]
[1747977239986,0.30625664,110790.0,110780.0,1.03130652]
[1747977240186,0.30625664,110790.0,110780.0,0.40386652]
[1747977240390,0.30625664,110790.0,110780.0,1.03130652]
[1747977240880,0.30625664,110790.0,110780.0,1.02772893]
[1747977242356,0.30625664,110790.0,110780.0,0.75724893]
[1747977242555,0.30625664,110790.0,110780.0,1.02772893]
[1747977250575,0.30625664,110790.0,110780.0,0.63824893]
[1747977251394,0.27395664,110790.0,110780.0,0.63824893]
[1747977251597,0.24095664,110790.0,110780.0,0.63824893]
[1747977251958,0.27185664,110790.0,110780.0,0.63780893]
[1747977253838,0.30255664,110790.0,110780.0,0.63780893]
[1747977256461,0.64255664,110790.0,110780.0,0.63780893]
[1747977257592,0.61185664,110790.0,110780.0,0.65219545]
[1747977257799,0.58095664,110790.0,110780.0,0.65219545]
[1747977258813,0.24095664,110790.0,110780.0,0.65219545]
[1747977259440,0.24095664,110790.0,110780.0,0.64138652]
[1747977261849,0.24095664,110790.0,110780.0,1.03090652]
[1747977264869,0.24095664,110790.0,110780.0,2.078873]
[1747977265226,0.24095664,110790.0,110780.0,2.468393]
[1747977265997,0.24095664,110790.0,110780.0,2.738913]
[1747977266207,0.24095664,110790.0,110780.0,2.772013]
[1747977266618,0.15141108,110790.0,110780.0,2.804713]
[1747977266820,0.13941108,110790.0,110780.0,2.804713]
[1747977270945,0.13941108,110790.0,110780.0,2.772013]
[1747977271763,0.13941108,110790.0,110780.0,2.468393]
[1747977271987,0.13941108,110790.0,110780.0,2.738913]
[1747977275959,0.13941108,110790.0,110780.0,2.51687438]
[1747977276168,0.13941108,110790.0,110780.0,2.516875]
[1747977283049,0.13941108,110790.0,110780.0,1.890475]
[1747977283256,0.13941108,110790.0,110780.0,2.516835]
[1747977284698,0.13941108,110790.0,110780.0,1.890475]
[1747977284909,0.13941108,110790.0,110780.0,2.516835]
[1747977285702,0.13941108,110790.0,110780.0,2.328618]
[1747977287509,0.17031108,110790.0,110780.0,2.328618]
[1747977292922,0.17031108,110790.0,110780.0,1.4317]
[1747977293695,0.17031108,110790.0,110780.0,1.07586]
[1747977294139,0.17031108,110790.0,110780.0,1.34634]
[1747977294911,0.17031108,110790.0,110780.0,1.07586]
[1747977295106,0.17031108,110790.0,110780.0,1.34634]
[1747977295314,0.17031108,110790.0,110780.0,2.0917]
[1747977296325,0.20081108,110790.0,110780.0,2.10610914]
[1747977296730,0.20081108,110790.0,110780.0,1.47974914]
[1747977297050,0.20081108,110790.0,110780.0,2.10610914]
[1747977303454,0.20081108,110790.0,110780.0,2.0917]
[1747977309599,0.20081108,110790.0,110780.0,1.82122]
[1747977309810,0.29035664,110790.0,110780.0,1.53764]
[1747977310005,0.29035664,110790.0,110780.0,1.45694]
[1747977310188,0.29035664,110790.0,110780.0,1.38924]
[1747977318357,0.29035664,110790.0,110780.0,0.76288]
[1747977318564,0.29035664,110790.0,110780.0,1.38856]
[1747977319486,0.29035664,110790.0,110780.0,1.1422361]
[1747977321604,0.29035664,110790.0,110780.0,0.5165561]
[1747977321745,0.29035664,110790.0,110780.0,1.1422361]
[1747977324284,0.29035664,110790.0,110780.0,1.10168]
[1747977324507,0.29035664,110790.0,110780.0,1.37216]
[1747977324908,0.29035664,110790.0,110780.0,1.32956]
[1747977325460,0.29035664,110790.0,110780.0,1.04468]
[1747977325655,0.29035664,110790.0,110780.0,1.31516]
[1747977325852,0.29035664,110790.0,110780.0,0.94608]
[1747977326105,0.29035664,110790.0,110780.0,1.01516]
[1747977326529,0.29035664,110790.0,110780.0,1.02597228]
[1747977327282,0.63035664,110790.0,110780.0,0.40029228]
[1747977327504,0.63035664,110790.0,110780.0,0.75549228]
[1747977327716,0.64489749,110790.0,110780.0,1.02597228]
[1747977327929,0.64489749,110790.0,110780.0,0.40029228]
[1747977328074,0.64489749,110790.0,110780.0,1.02601228]
[1747977328279,0.64489749,110790.0,110780.0,1.0152]
[1747977328895,0.64589749,110790.0,110780.0,1.0152]
[1747977329091,0.64589749,110790.0,110780.0,0.38948]
[1747977329279,0.64589749,110790.0,110780.0,1.0152]
[1747977329496,0.64789749,110790.0,110780.0,1.0152]
[1747977331143,0.64789749,110790.0,110780.0,1.02601228]
[1747977331771,0.65989749,110790.0,110780.0,1.02601228]
[1747977333168,0.65989749,110790.0,110780.0,1.02605228]
[1747977333660,0.65989749,110790.0,110780.0,0.40029228]
[1747977333864,0.65989749,110790.0,110780.0,1.02605228]
[1747977338948,0.65989749,110790.0,110780.0,1.01524]
[1747977340883,0.65989749,110790.0,110780.0,0.74472]
[1747977341093,0.65989749,110790.0,110780.0,1.01524]
[1747977343410,0.64789749,110790.0,110780.0,1.01524]
[1747977345474,0.64789749,110790.0,110780.0,1.01456]
[1747977348113,0.64789749,110790.0,110760.0,0.40037228]
[1747977348463,0.55322601,110790.0,110780.0,0.35456]
[1747977348667,0.64277157,110790.0,110780.0,0.35456]
[1747977349073,0.64077157,110790.0,110780.0,0.35456]
[1747977349456,0.64077157,110790.0,110780.0,0.62512]
[1747977351242,0.64277157,110790.0,110780.0,0.62512]
[1747977354707,0.00902942,110740.0,110730.0,0.03934646]
[1747977354916,0.00902942,110740.0,110730.0,1.04950031]
[1747977355269,0.00902942,110740.0,110730.0,1.79362031]
[1747977355426,0.00902942,110740.0,110730.0,1.77950616]
[1747977355816,0.02708908,110740.0,110730.0,2.05506616]
[1747977356056,0.02708908,110740.0,110730.0,2.05521942]
[1747977356255,0.02708908,110740.0,110730.0,2.06021942]
[1747977356481,0.20769318,110740.0,110730.0,1.418898]
[1747977356617,0.02708997,110740.0,110730.0,2.06207905]
[1747977358165,0.02708997,110740.0,110730.0,2.07619484]
[1747977361083,0.02708997,110740.0,110730.0,2.06207905]
[1747977361392,0.02708997,110740.0,110730.0,2.07110953]
[1747977362267,0.01805958,110740.0,110730.0,2.07110953]
[1747977362497,0.02708957,110740.0,110730.0,2.07110953]
[1747977364372,0.02708957,110740.0,110730.0,2.08522545]
[1747977365309,0.01805958,110740.0,110730.0,2.08522545]
[1747977365736,0.01805958,110740.0,110730.0,2.11405446]
[1747977366355,0.02708957,110740.0,110730.0,2.11405446]
[1747977370714,0.03611964,110740.0,110730.0,2.11405446]
[1747977371123,0.0451498,110740.0,110730.0,1.48893446]
[1747977371351,0.0451498,110740.0,110730.0,2.09941854]
[1747977372082,0.21672285,110740.0,110730.0,1.418898]
[1747977372300,0.21672285,110740.0,110730.0,2.06155938]
[1747977373153,0.20769318,110740.0,110730.0,2.05252873]
[1747977373971,0.23519318,110740.0,110730.0,2.05252873]
[1747977374208,0.24263328,110740.0,110730.0,1.85384926]
[1747977375559,0.24263328,110740.0,110730.0,1.58328926]
[1747977375910,0.24263328,110740.0,110730.0,1.85384926]
[1747977376412,0.24263328,110740.0,110730.0,1.22424926]
[1747977376625,0.24263328,110740.0,110730.0,1.40091326]
[1747977376834,0.24263328,110740.0,110730.0,1.13035326]
[1747977377047,0.33217884,110740.0,110730.0,1.29171326]
[1747977378071,0.33217884,110740.0,110730.0,1.28771326]
[1747977378289,0.33217884,110740.0,110730.0,1.26691326]
[1747977378503,0.33217884,110740.0,110730.0,0.74375326]
[1747977378812,0.33217884,110740.0,110730.0,1.01431326]
[1747977379122,0.33217884,110740.0,110730.0,1.01731326]
[1747977379264,0.33217884,110740.0,110730.0,1.03171983]
[1747977379470,0.33217884,110740.0,110730.0,1.03371983]
[1747977381766,0.33217884,110740.0,110730.0,0.40911983]
[1747977381975,0.33217884,110740.0,110730.0,1.03379983]
[1747977382421,0.24263328,110740.0,110730.0,1.8723668]
[1747977382631,0.24263328,110740.0,110730.0,1.86333583]
[1747977384735,0.053,110740.0,110730.0,2.04395535]
[1747977384943,0.18961624,110750.0,110740.0,0.18963312]
[1747977385116,0.19864534,110750.0,110740.0,1.02819911]
[1747977385531,0.19864534,110750.0,110740.0,1.01916928]
[1747977385708,0.19864534,110750.0,110740.0,1.02819927]
[1747977385871,0.19864534,110750.0,110740.0,1.0191692]
[1747977386073,0.18961624,110750.0,110740.0,0.831536]
[1747977386282,0.18961624,110750.0,110740.0,0.84694257]
[1747977386686,0.18961624,110750.0,110740.0,0.85597264]
[1747977387129,0.18961624,110750.0,110740.0,1.03657577]
[1747977389544,0.18961624,110750.0,110740.0,1.04560568]
[1747977390589,0.18961624,110750.0,110740.0,1.03657577]
[1747977392039,0.21631624,110750.0,110740.0,1.03657577]
[1747977392554,0.24331624,110750.0,110740.0,1.03657577]
[1747977392900,0.0180568,110760.0,110750.0,0.19864534]
[1747977393107,0.02708435,110760.0,110750.0,1.67091896]
[1747977393512,0.03611279,110760.0,110750.0,1.66189019]
[1747977393725,0.03611279,110760.0,110750.0,1.67629676]
[1747977394551,0.20765552,110760.0,110750.0,1.66726791]
[1747977395480,0.20765552,110760.0,110750.0,1.66826791]
[1747977395659,0.1986274,110760.0,110750.0,1.66826791]
[1747977396776,0.18959904,110760.0,110750.0,1.66826791]
[1747977396998,0.18959904,110760.0,110750.0,1.65386134]
[1747977397541,0.18959904,110760.0,110750.0,2.04346134]
[1747977398749,0.1805706,110760.0,110750.0,1.85384534]
[1747977399585,0.2074706,110760.0,110750.0,1.844816]
[1747977402634,0.2336706,110760.0,110750.0,1.844816]
[1747977402965,0.2074706,110760.0,110750.0,1.844816]
[1747977403153,0.1805706,110760.0,110750.0,1.844816]
[1747977404815,0.2343706,110760.0,110750.0,1.844816]
[1747977405801,0.01805583,110760.0,110750.0,2.05248994]
[1747977406020,0.02708256,110770.0,110750.0,2.14249024]
[1747977406243,0.20763751,110770.0,110760.0,1.00840381]
[1747977406474,0.19861021,110770.0,110760.0,0.80752]
[1747977406685,0.24188266,110770.0,110760.0,0.80752]
[1747977406886,0.24188266,110770.0,110760.0,1.4318]
[1747977407720,0.24188266,110770.0,110760.0,1.44615392]
[1747977408525,0.24188266,110770.0,110760.0,1.44715392]
[1747977408823,0.24188266,110770.0,110760.0,1.44915392]
[1747977414702,0.24188266,110770.0,110760.0,1.09539392]
[1747977414945,0.24188266,110770.0,110760.0,1.44907392]
[1747977416604,0.24188266,110770.0,110760.0,1.43472]
[1747977423266,0.00902722,110770.0,110760.0,1.64237519]
[1747977423509,0.23559822,110780.0,110770.0,0.00902763]
[1747977423721,0.23559822,110780.0,110770.0,0.81880418]
[1747977423867,0.23559822,110780.0,110770.0,0.80752]
[1747977424815,0.23659822,110780.0,110770.0,0.80752]
[1747977425018,0.23659822,110780.0,110770.0,0.81654771]
[1747977426060,0.23659822,110780.0,110770.0,0.82557534]
[1747977427176,0.23659822,110780.0,110770.0,1.00612964]
[1747977427323,0.23659822,110780.0,110770.0,1.01515719]
[1747977428286,0.23659822,110780.0,110770.0,1.40467719]
[1747977428942,0.056,110780.0,110770.0,1.40467719]
[1747977429168,0.01002624,110780.0,110770.0,1.51227727]
[1747977429375,0.01905265,110780.0,110770.0,1.51227727]
[1747977430168,0.01002624,110780.0,110770.0,1.53347727]
[1747977430783,0.00902624,110780.0,110770.0,1.54757727]
[1747977430986,0.02707913,110780.0,110770.0,1.53647727]
[1747977431190,0.03610586,110780.0,110770.0,1.51527727]
[1747977431386,0.09310586,110780.0,110770.0,1.51527727]
[1747977431594,0.09310586,110780.0,110770.0,1.28958556]
[1747977431595,0.27364386,110780.0,110770.0,1.28958556]
[1747977431807,0.2555913,110780.0,110770.0,1.29358556]
[1747977432015,0.2555913,110780.0,110770.0,1.82796]
[1747977432427,0.2555913,110780.0,110770.0,1.20404]
[1747977432634,0.2555913,110780.0,110770.0,1.82796]
[1747977435270,0.2555913,110780.0,110770.0,1.55744]
[1747977435482,0.2555913,110780.0,110770.0,1.82792]
[1747977440515,0.2555913,110780.0,110770.0,2.01750193]
[1747977440716,0.24656473,110780.0,110770.0,2.01750193]
[1747977440932,0.24656473,110780.0,110770.0,1.82792]
[1747977443174,0.237538,110780.0,110770.0,1.82792]
[1747977446347,0.237538,110780.0,110770.0,1.20404]
[1747977446550,0.237538,110780.0,110770.0,1.82792]
[1747977455504,0.237538,110780.0,110770.0,1.85676147]
[1747977459038,0.057,110780.0,110770.0,2.03731577]
[1747977459273,0.01805256,110780.0,110770.0,2.07342433]
[1747977459523,0.02707905,110780.0,110770.0,2.06439735]
[1747977459729,0.03610578,110780.0,110770.0,2.05537029]
[1747977459906,0.08840578,110780.0,110770.0,2.05537029]
[1747977460713,0.0626057,110780.0,110770.0,2.05537029]
[1747977460855,0.07163243,110780.0,110770.0,2.05537029]
[1747977461408,0.04513243,110780.0,110770.0,2.05537029]
[1747977461706,0.24424419,110780.0,110770.0,2.06439808]
[1747977462025,0.26271787,110780.0,110770.0,2.0463434]
[1747977462240,0.25369138,110780.0,110770.0,2.0463434]
[1747977462440,0.25369138,110780.0,110770.0,2.06439825]
[1747977463156,0.25369138,110780.0,110770.0,2.06439842]
[1747977463565,0.24466473,110780.0,110770.0,2.05537095]
[1747977464241,0.235638,110780.0,110770.0,2.05537095]
[1747977464999,0.235638,110780.0,110770.0,1.85676147]
[1747977465209,0.235638,110780.0,110770.0,2.19515121]
[1747977472415,0.235638,110780.0,110770.0,2.20417892]
[1747977472593,0.229638,110780.0,110770.0,2.37337379]
[1747977473333,0.229638,110780.0,110770.0,2.34453232]
[1747977474537,0.0551,110780.0,110770.0,2.61463218]
[1747977474712,0.03610652,110780.0,110770.0,2.63268695]
[1747977475126,0.0270802,110780.0,110770.0,2.63268695]
[1747977475457,0.0270802,110780.0,110770.0,2.62365965]
[1747977475578,0.0829802,110780.0,110770.0,2.62365965]
[1747977476749,0.2635182,110780.0,110770.0,2.62365965]
[1747977477250,0.17197495,110780.0,110770.0,2.34415218]
[1747977477469,0.16294838,110780.0,110770.0,2.62365973]
[1747977478271,0.16294838,110780.0,110770.0,2.45446486]
[1747977480250,0.21494838,110780.0,110770.0,2.62365973]
[1747977480694,0.18944838,110780.0,110770.0,2.62365973]
[1747977481559,0.21654838,110780.0,110770.0,2.62365973]
[1747977482306,0.21654838,110780.0,110770.0,2.61463218]
[1747977483577,0.21654838,110780.0,110770.0,2.42505017]
[1747977483797,0.21654838,110780.0,110770.0,2.2558553]
[1747977484158,0.21654838,110780.0,110770.0,2.42505017]
[1747977484522,0.21054838,110780.0,110770.0,2.42505017]
[1747977488775,0.21054838,110780.0,110770.0,2.45389164]
[1747977489299,0.18344838,110780.0,110770.0,2.45389164]
[1747977490969,0.21034838,110780.0,110770.0,2.45389164]
[1747977491232,0.21034838,110780.0,110770.0,2.28469677]
[1747977491442,0.21034838,110780.0,110770.0,1.92467121]
[1747977491672,0.21034838,110780.0,110770.0,2.19515121]
[1747977492808,0.21034838,110780.0,110770.0,2.16630974]
[1747977493570,0.21034838,110780.0,110770.0,1.90647174]
[1747977495489,0.18344838,110780.0,110770.0,1.91549945]
[1747977495652,0.20884838,110780.0,110770.0,1.91549945]
[1747977496735,0.20150193,110780.0,110770.0,2.12313606]
[1747977496948,0.20150193,110780.0,110770.0,2.29233093]
[1747977498679,0.20150193,110780.0,110770.0,1.88074979]
[1747977498880,0.20150193,110780.0,110770.0,1.88977701]
[1747977499087,0.17500193,110780.0,110770.0,1.88977701]
[1747977500243,0.01805355,110780.0,110770.0,1.88977644]
[1747977500819,0.01805306,110780.0,110770.0,1.979322]
[1747977501023,0.02707979,110780.0,110770.0,1.979322]
[1747977501255,0.0361066,110780.0,110770.0,1.979322]
[1747977503196,0.2256715,110780.0,110770.0,1.984756]
[1747977503496,0.24324509,110780.0,110770.0,1.97572878]
[1747977503935,0.24324509,110780.0,110770.0,1.80653391]
[1747977505213,0.25129171,110780.0,110770.0,1.27555174]
[1747977505414,0.25129171,110780.0,110770.0,2.08841359]
[1747977505817,0.25129171,110780.0,110770.0,2.09744097]
[1747977506687,0.2422649,110780.0,110770.0,2.09744097]
[1747977508674,0.2422649,110780.0,110770.0,2.10646844]
[1747977510032,0.2422649,110780.0,110770.0,2.1080787]
[1747977510446,0.2422649,110780.0,110770.0,2.09905132]
[1747977510904,0.233238,110780.0,110770.0,1.900442]
[1747977511052,0.233238,110780.0,110770.0,1.90946971]
[1747977511270,0.233238,110780.0,110770.0,2.10807919]
[1747977511677,0.233238,110780.0,110770.0,2.09905164]
[1747977511905,0.233238,110780.0,110770.0,1.900442]
[1747977512335,0.233238,110780.0,110770.0,1.90946963]
[1747977512560,0.233238,110780.0,110770.0,2.09002393]
[1747977513262,0.233238,110780.0,110770.0,2.09905148]
[1747977513438,0.233238,110780.0,110770.0,2.0809963]
[1747977513640,0.233238,110780.0,110770.0,2.09002393]
[1747977513855,0.233238,110780.0,110770.0,1.900442]
[1747977514068,0.233238,110780.0,110770.0,1.90946971]
[1747977514386,0.233238,110780.0,110770.0,1.91849734]
[1747977514783,0.233238,110780.0,110770.0,1.29521734]
[1747977514965,0.233238,110780.0,110770.0,1.91849734]
[1747977515121,0.233056,110780.0,110770.0,1.91849734]
[1747977515523,0.233056,110780.0,110770.0,1.900442]
[1747977515967,0.233056,110780.0,110770.0,1.629962]
[1747977516223,0.233056,110780.0,110770.0,1.900442]
[1747977518814,0.233056,110780.0,110770.0,1.277162]
[1747977519070,0.233056,110780.0,110770.0,1.900442]
[1747977519443,0.233056,110780.0,110770.0,0.547682]
[1747977519724,0.233056,110780.0,110770.0,1.629962]
[1747977519964,0.32260156,110780.0,110770.0,0.38948]
[1747977520206,0.32260156,110780.0,110770.0,1.35276]
[1747977521228,0.32260156,110780.0,110770.0,1.36452915]
[1747977521436,0.32260156,110780.0,110770.0,1.36552915]
[1747977523543,0.33714241,110780.0,110770.0,0.63572915]
[1747977524717,0.33714241,110780.0,110770.0,0.62496]
[1747977525324,0.33714241,110780.0,110770.0,0.002]
[1747977525503,0.33714241,110780.0,110770.0,0.625]
[1747977527303,0.32260156,110780.0,110770.0,0.62504]
[1747977527508,0.32260156,110780.0,110770.0,0.549682]
[1747977527656,0.32260156,110780.0,110770.0,1.172722]
[1747977528668,0.32260156,110780.0,110770.0,1.18349115]
[1747977533658,0.32260156,110780.0,110770.0,1.52349115]
[1747977535392,0.32260156,110780.0,110770.0,1.52275519]
[1747977540694,0.32260156,110780.0,110770.0,1.86120689]
[1747977541274,0.32260156,110780.0,110770.0,1.70633991]
[1747977542752,0.32260156,110780.0,110770.0,1.69198104]
[1747977544657,0.32260156,110780.0,110770.0,1.69557076]
[1747977544888,0.32260156,110780.0,110770.0,1.86479661]
[1747977545842,0.32260156,110780.0,110770.0,1.69557076]
[1747977548304,0.32260156,110780.0,110770.0,1.86479661]
[1747977548806,0.31660156,110780.0,110770.0,2.25435661]
[1747977551607,0.31660156,110780.0,110770.0,1.63131661]
[1747977551811,0.31660156,110780.0,110770.0,2.25435661]
[1747977552379,0.227056,110780.0,110770.0,2.25435661]
[1747977552583,0.174356,110780.0,110770.0,2.25435661]
[1747977553066,0.201256,110780.0,110770.0,2.25435661]
[1747977554662,0.201256,110780.0,110770.0,1.63131661]
[1747977554883,0.201256,110780.0,110770.0,2.25415661]
[1747977555119,0.227156,110780.0,110770.0,2.25415661]
[1747977555327,0.227156,110780.0,110770.0,1.64324876]
[1747977556862,0.31670156,110780.0,110770.0,1.09750291]
[1747977557082,0.31670156,110780.0,110770.0,1.53724876]
[1747977558918,0.31670156,110780.0,110770.0,1.5480351]
[1747977560483,0.31670156,110780.0,110770.0,2.0957171]
[1747977560700,0.31670156,110780.0,110770.0,2.08493076]
[1747977561649,0.31670156,110780.0,110770.0,1.46209076]
[1747977561984,0.31670156,110780.0,110770.0,2.08493076]
[1747977563910,0.31670156,110780.0,110770.0,2.25415661]
[1747977570005,0.31670156,110780.0,110770.0,2.02943583]
[1747977570367,0.31670156,110780.0,110770.0,1.91289257]
[1747977571009,0.31670156,110780.0,110770.0,1.9093169]
[1747977573285,0.31670156,110780.0,110770.0,1.5708652]
[1747977573490,0.31670156,110780.0,110770.0,1.9093169]
[1747977574549,0.31670156,110780.0,110770.0,1.6387969]
[1747977574746,0.31670156,110780.0,110770.0,1.9093169]
[1747977575270,0.31670156,110780.0,110770.0,1.5708652]
[1747977575486,0.31670156,110780.0,110770.0,1.74009105]
[1747977576102,0.31670156,110780.0,110770.0,1.5708652]
[1747977576314,0.31670156,110780.0,110770.0,1.9093169]
[1747977577711,0.31670156,110780.0,110770.0,2.2385337]
[1747977580470,0.31670156,110780.0,110770.0,2.06930785]
[1747977581864,0.31670156,110780.0,110770.0,2.08366672]
[1747977582867,0.31670156,110780.0,110770.0,1.81314672]
[1747977583074,0.31670156,110780.0,110770.0,2.08366672]
[1747977585057,0.31670156,110780.0,110770.0,2.08346672]
[1747977585352,0.31670156,110780.0,110770.0,1.86302972]
[1747977585876,0.31670156,110780.0,110770.0,1.61650326]
[1747977586175,0.31670156,110780.0,110770.0,1.52302972]
[1747977586690,0.31670156,110780.0,110770.0,1.50867085]
[1747977595141,0.31670156,110780.0,110770.0,1.84867085]
[1747977595570,0.31670156,110780.0,110770.0,2.0178967]
[1747977596437,0.31670156,110780.0,110770.0,2.03225557]
[1747977599121,0.31670156,110780.0,110770.0,1.86302972]
[1747977601206,0.31670156,110780.0,110770.0,1.69380387]
[1747977601411,0.31670156,110780.0,110770.0,1.86302972]
[1747977604343,0.31670156,110780.0,110770.0,1.69380387]
[1747977604518,0.31670156,110780.0,110770.0,1.86302972]
[1747977608340,0.31670156,110780.0,110770.0,1.42328387]
[1747977608549,0.31670156,110780.0,110770.0,1.86302972]
[1747977610587,0.31670156,110780.0,110770.0,1.52302972]
[1747977611999,0.31670156,110780.0,110770.0,1.19578472]
[1747977613363,0.31670156,110780.0,110770.0,0.92526472]
[1747977613585,0.31670156,110780.0,110770.0,1.19578472]
[1747977621748,0.31670156,110780.0,110770.0,0.57314472]
[1747977621996,0.31670156,110780.0,110770.0,1.19558472]
[1747977622938,0.31670156,110780.0,110770.0,1.18122585]
[1747977625192,0.31670156,110780.0,110770.0,1.19558472]
[1747977625358,0.31670156,110780.0,110770.0,1.02635887]
[1747977625575,0.31670156,110780.0,110770.0,1.19558472]
[1747977625790,0.31670156,110780.0,110770.0,0.92506472]
[1747977625994,0.31670156,110780.0,110770.0,1.19562472]
[1747977626212,0.32870156,110780.0,110770.0,1.19562472]
[1747977627186,0.32870156,110780.0,110770.0,0.79170585]
[1747977627735,0.31670156,110780.0,110770.0,0.79170585]
[1747977638440,0.31670156,110780.0,110770.0,1.13170585]
[1747977643170,0.31670156,110780.0,110770.0,1.14606472]
[1747977643641,0.31670156,110780.0,110770.0,1.14578472]
[1747977649245,0.31642761,110780.0,110770.0,1.14578472]
[1747977650490,0.31642761,110780.0,110770.0,1.13142585]
[1747977654131,0.31642761,110780.0,110770.0,0.34]
[1747977654323,0.31642761,110780.0,110770.0,1.13142585]
[1747977658160,0.31642761,110780.0,110770.0,1.14221746]
[1747977658788,0.31642761,110780.0,110770.0,0.87165746]
[1747977658960,0.31642761,110780.0,110770.0,1.14221746]
[1747977659744,0.31642761,110780.0,110770.0,0.88391919]
[1747977659932,0.31642761,110780.0,110770.0,0.79142585]
[1747977661314,0.06312755,110770.0,110760.0,0.38956]
[1747977661529,0.33547886,110770.0,110760.0,0.7412]
[1747977661770,0.34776826,110770.0,110760.0,0.7412]
[1747977661969,0.34776826,110770.0,110760.0,1.01176]
[1747977662173,0.68776826,110770.0,110760.0,0.7412]
[1747977663007,0.69776826,110770.0,110760.0,0.7412]
[1747977663170,0.69876826,110770.0,110760.0,0.7412]
[1747977663841,0.69776826,110770.0,110760.0,0.7412]
[1747977663993,0.36076826,110770.0,110760.0,0.7412]
[1747977664216,0.36376826,110770.0,110760.0,0.35164]
[1747977664563,0.38242482,110770.0,110760.0,0.35164]
[1747977664946,0.20415693,110750.0,110740.0,0.16922585]
[1747977665119,0.34850249,110750.0,110740.0,0.79146585]
[1747977666325,0.34950249,110750.0,110740.0,0.35168]
[1747977666507,0.34950249,110750.0,110740.0,0.62224]
[1747977667086,0.35050249,110750.0,110740.0,0.62224]
[1747977667297,0.35050249,110750.0,110740.0,0.79146585]
[1747977668553,0.35050249,110750.0,110740.0,1.13146585]
[1747977669332,0.35050249,110750.0,110740.0,0.79146585]
[1747977669535,0.4046098,110750.0,110740.0,0.79146585]
[1747977670478,0.35050249,110750.0,110740.0,0.79146585]
[1747977671249,0.35050249,110750.0,110740.0,1.13146585]
[1747977671873,0.35050249,110750.0,110740.0,1.13154585]
[1747977672083,0.34950249,110750.0,110740.0,0.86094585]
[1747977672279,0.35350249,110750.0,110740.0,1.13154585]
[1747977672724,0.35350249,110750.0,110740.0,1.13158585]
[1747977672929,0.35250249,110750.0,110740.0,0.96236]
[1747977673127,0.35550249,110750.0,110740.0,0.96236]
[1747977675330,0.35550249,110750.0,110740.0,1.13158585]
[1747977682865,0.35550249,110750.0,110740.0,0.96236]
[1747977683073,0.35550249,110750.0,110740.0,1.13158585]
[1747977683366,0.35550249,110750.0,110740.0,0.50922585]
[1747977683562,0.35550249,110750.0,110740.0,1.13138585]
[1747977686697,0.35550249,110750.0,110740.0,0.96216]
[1747977686930,0.35550249,110750.0,110740.0,1.13138585]
[1747977689869,0.35550249,110750.0,110740.0,0.86074585]
[1747977690076,0.35550249,110750.0,110740.0,1.13138585]
[1747977692384,0.35550249,110750.0,110740.0,0.34]
[1747977692587,0.26077405,110740.0,110730.0,0.35152]
[1747977692849,0.35031961,110740.0,110730.0,1.13138585]
[1747977693783,0.35237059,110740.0,110730.0,0.9622]
[1747977694778,0.35537059,110740.0,110730.0,0.9622]
[1747977694972,0.35537059,110740.0,110730.0,0.34]
[1747977695328,0.35537059,110740.0,110730.0,0.61068]
[1747977695765,0.35537059,110740.0,110730.0,0.34]
[1747977695899,0.35537059,110740.0,110730.0,0.61068]